[Event "Grand Prix Romania 1st Stage 2024"]
[Site "Bucuresti"]
[Date "2024.03.24"]
[Round "8.12"]
[White "Efroimski, Marsel"]
[Black "Bernadskiy, Vitaliy"]
[Result "0-1"]
[ECO "B51"]
[WhiteElo "2467"]
[BlackElo "2573"]
[Annotator "TA"]
[PlyCount "88"]
[EventDate "2024.03.20"]
[EventType "swiss"]
[EventCountry "ROU"]
[SourceTitle "playchess.com"]
[Source "ChessBase"]
[SourceQuality "1"]
[TimeControl "900+5"]

{[%evp 26,88,0,-2,146,183,306,277,319,305,354,268,268,271,249,-15,-16,-15,293,320,309,-195,294,268,748,730,680,530,520,535,812,808,707,475,457,439,760,-66,-65,-72,-59,-171,-156,-168,-170,-170,-163,-156,-162,-331,-350,-331,-335,-487,-494,-435,-427,-934,-548,-666,-616,-952,-920,-710,-615]} 1. e4 {[%emt 0:00:01]} c5 {[%emt 0:00:01]} 2. Nf3 {[%emt 0:00:02]} d6 {[%emt 0:00:04]} 3. Bb5+ {[%emt 0:00:13]} Nd7 {[%emt 0:00:01]} 4. d4 {[%emt 0:00:11]} cxd4 {[%emt 0:00:04]} 5. Qxd4 {[%emt 0:00:01]} a6 {[%emt 0:00:13]} 6. Be2 {[%emt 0:00:02] B51: Sicilian: Moscow Variation (3 Bb5+) without 3...Bd7.} Ngf6 {[%emt 0:00:09]} 7. Nc3 {[%emt 0:00:01]} g6 {[%emt 0:00:19]} 8. O-O {[%emt 0:00:04]} Bg7 {[%emt 0:00:01]} 9. Rd1 {[%emt 0:00:07]} O-O {[%emt 0:00:04]} 10. e5 {[%emt 0:00:07]} Nh5 {[%emt 0:01:46]} 11. Qh4 {[%emt 0:01:09]} dxe5 {[%emt 0:00:17]} 12. Bg5 {[%emt 0:02:13]} f6 {[%emt 0:00:37]} 13. Bc4+ $146 {[%emt 0:00:03]} ({Predecessor:} 13. Be3 Kh8 14. Nd5 e6 15. Nb6 Nf4 16. Bf1 Rb8 17. Rd6 Qc7 18. Rad1 g5 19. Qg3 {0-1 Nasuta,G (2553)-Navara,D (2719) POL-chT Ekstraliga 2020 (9.4)}) 13... Kh8 {[%emt 0:00:02]} 14. Be3 {[%emt 0:00:03]} Qa5 {[%emt 0:00:46]} (14... Qe8 $11 {keeps the balance.}) 15. Nd5 $16 {[%emt 0:00:20]} e6 {[%emt 0:00:59]} (15... b5 {was called for.}) 16. b4 $1 $18 {[%emt 0:00:12]} Qa3 {[%emt 0:01:47]} 17. Nc7 {[%emt 0:00:18]} e4 {[%emt 0:00:02]} 18. Nd2 {[%emt 0:01:08]} (18. Nxa8 exf3 19. Bb3 (19. Bxe6 Ne5 $18) 19... a5 $18 (19... fxg2 $2 20. Bc1 $18)) 18... f5 {[%emt 0:01:07]} 19. Nxa8 {[%emt 0:01:06]} f4 {[%emt 0:00:11]} 20. Rab1 $2 {[%emt 0:01:39]} (20. Ba7 $1 $18) 20... fxe3 $11 {[%emt 0:00:10]} 21. Nxe4 {[%emt 0:00:02]} Ne5 $2 {[%emt 0:03:11][%mdl 8192]} (21... exf2+ $11 22. Nxf2 Qe3) 22. Rd8 $1 $18 {[%emt 0:00:39]} (22. Nb6 exf2+ 23. Nxf2 Qe3 24. Nxc8 g5 $11 (24... Nxc4 $2 25. Rd8 $18)) 22... Nxc4 {[%emt 0:01:33]} 23. Rxf8+ {[%emt 0:00:02]} Bxf8 {[%emt 0:00:02]} 24. Qd8 {[%emt 0:00:02]} Kg7 $2 {[%emt 0:00:13]} (24... Kg8 25. Qxc8 Qxa2 26. Qxe6+ Kg7) 25. Qc7+ $18 {[%emt 0:00:12]} (25. Qxc8 Qxa2 26. Rf1 (26. Qxb7+ Kh6 $16) 26... e2 $18) 25... Kh6 {[%emt 0:00:04]} 26. Qxc4 {[%emt 0:00:07]} Bd7 {[%emt 0:00:25]} 27. g4 {[%emt 0:01:08]} Nf4 {[%emt 0:01:49]} 28. g5+ {[%emt 0:01:34]} Kh5 {[%emt 0:00:02]} 29. Nf6+ {[%emt 0:00:01]} Kxg5 {[%emt 0:00:01]} 30. Nxd7 {[%emt 0:00:42]} e2 {[%emt 0:00:48]} (30... exf2+ $142 31. Kxf2 Qh3 32. Nxf8 (32. Rg1+ Kf5 $16) 32... Qh4+ 33. Kf1 (33. Ke3 Nd5+ 34. Kd3 Qh3+ 35. Ke2 Qxh2+ 36. Kf3 Qh3+ 37. Kf2 Qe3+ 38. Kf1 Qf3+ 39. Ke1 Qg3+ 40. Ke2 Qg2+ 41. Ke1 Qg3+ 42. Ke2 Qg2+ 43. Ke1 Qg3+ $11) 33... Qh3+ 34. Ke1 Qe3+ 35. Kd1 Qg1+ 36. Kd2 Qxb1 37. Nxh7+ (37. Nxe6+ Nxe6 38. Qxe6 Qxb4+ 39. Kd3 Qb5+ 40. c4 Qb1+ 41. Kd4 Qxa2 $11) 37... Kf5) 31. Qb3 $2 {[%emt 0:00:39]} (31. Nxf8 Nh3+ 32. Kg2 Nf4+ 33. Kg1 Nh3+ 34. Kg2 Nf4+ 35. Kg1 $11) ({White should try} 31. h4+ $18 Kf5 32. Qd4 (32. Nxf8 Qh3 $11)) 31... Qxb3 $15 {[%emt 0:00:13]} 32. axb3 {[%emt 0:00:18]} (32. cxb3 $2 {is the wrong capture.} Bxb4 33. Nc7 Kf5 $19 (33... e1=R+ 34. Rxe1 Bxe1 35. Nc5 $14)) 32... Bxb4 {[%emt 0:00:01]} 33. Nc7 {[%emt 0:00:07]} (33. f3 $1 $15) 33... Kf5 $1 $19 {[%emt 0:00:24]} 34. f3 {[%emt 0:00:15]} e1=Q+ {[%emt 0:00:04]} 35. Rxe1 {[%emt 0:00:02]} Bxe1 {[%emt 0:00:01]} 36. Nc5 {[%emt 0:00:01]} Ba5 {[%emt 0:00:03]} 37. Ne8 $2 {[%emt 0:00:10] [#]} (37. Na8) 37... Bb6 $1 $19 {[%emt 0:00:26]} 38. Nd6+ {[%emt 0:00:02]} Ke5 {[%emt 0:00:03]} 39. Ndxb7 {[%emt 0:00:01] [#]} (39. Nc4+ $142 Kd5 40. Nxb6+ Kxc5 41. Nd7+ Kd4 42. Kf2) 39... Kd5 $1 $19 {[%emt 0:00:06]} 40. b4 {[%emt 0:00:00]} a5 {[%emt 0:00:04]} 41. c3 {[%emt 0:01:30]} (41. Kf1 $142 Bxc5 (41... axb4 $2 42. Ne4 $19) (41... Kc6 $2 42. Nxa5+ Bxa5 43. Nxe6 $19) 42. Nxc5 axb4 43. Ne4) 41... Nd3 {[%emt 0:00:02]} 42. Kf1 {[%emt 0:00:04]} Nxc5 {[%emt 0:00:02]} 43. bxc5 {[%emt 0:00:01]} Bc7 {[%emt 0:00:02]} ({Less strong is} 43... Bxc5 44. Nxa5 Bd6 45. h3 $17) 44. Ke2 {[%emt 0:00:09]} Kc6 {[%emt 0:00:02]} ({Weaker is} 44... Bxh2 45. Nxa5 Kxc5 46. Kd3 $19) 0-1

[Event "Grand Prix Romania 1st Stage 2024"]
[Site "Bucuresti"]
[Date "2024.03.24"]
[Round "8.13"]
[White "Bulau, Andrei-Cristian"]
[Black "Jianu, Vlad-Cristian"]
[Result "0-1"]
[ECO "D35"]
[WhiteElo "2142"]
[BlackElo "2491"]
[Annotator "TA"]
[PlyCount "54"]
[EventDate "2024.03.20"]
[EventType "swiss"]
[EventCountry "ROU"]
[SourceTitle "playchess.com"]
[Source "ChessBase"]
[SourceQuality "1"]
[TimeControl "900+5"]

{[%evp 15,54,8,9,8,16,20,22,33,23,19,26,5,18,0,0,0,5,-20,-24,-17,-12,-30,-39,-37,-24,-49,0,0,0,-163,-167,-161,-180,-3178,-647,-600,-523,-559,-521,-29994,-29995]} 1. d4 {[%emt 0:00:03]} Nf6 {[%emt 0:00:01]} 2. c4 {[%emt 0:00:07]} e6 {[%emt 0:00:01]} 3. Nc3 {[%emt 0:00:01]} d5 {[%emt 0:00:01]} 4. cxd5 {[%emt 0:00:07]} exd5 {[%emt 0:00:02]} 5. Bg5 {[%emt 0:00:04]} Be7 {[%emt 0:00:06]} 6. e3 {[%emt 0:00:04]} Nbd7 {[%emt 0:00:05]} 7. Bd3 {[%emt 0:00:05]} c6 {[%emt 0:00:07]} 8. Nge2 {[%emt 0:00:05]} h6 {[%emt 0:00:40]} 9. Bh4 {[%emt 0:00:01]} Nh5 {[%emt 0:00:01]} 10. Bxe7 {[%emt 0:00:03]} Qxe7 {[%emt 0:00:02]} 11. O-O {[%emt 0:00:04] Die Stellung ist ausgeglichen.} O-O {[%emt 0:00:02]} 12. Qc2 {[%emt 0:00:13]} Re8 {[%emt 0:00:44]} 13. Rac1 {[%emt 0:00:20]} Nb6 {[%emt 0:00:44]} 14. Na4 {[%emt 0:00:14]} Nxa4 {[%emt 0:00:12]} 15. Qxa4 {[%emt 0:00:02]} Bg4 {[%emt 0:00:02]} 16. Ng3 {[%emt 0:00:19]} Nxg3 {[%emt 0:00:28]} 17. hxg3 {[%emt 0:00:04]} h5 {[%emt 0:00:35]} 18. Qc2 {[%emt 0:00:13]} Qg5 {[%emt 0:00:55]} 19. b4 {[%emt 0:01:23]} Re6 {[%emt 0:00:44]} 20. b5 {[%emt 0:00:39][%cal Rb5c6]} Rae8 {[%emt 0:01:21]} (20... Rh6 $1 $15) 21. bxc6 $11 {[%emt 0:00:21]} bxc6 {[%emt 0:00:02]} 22. Qa4 $2 {[%emt 0:01:15] [#]} (22. Rfe1 $11 {und Weiss steht sicher.}) 22... Rh6 $1 $19 {[%emt 0:02:27] Und jetzt ...h4 wäre schön.} 23. Qxa7 {[%emt 0:04:48] Droht Rb1 und aus.} h4 {[%emt 0:00:02]} 24. gxh4 {[%emt 0:00:01]} (24. Qc7 h3 25. f4 (25. Rxc6 $2 {zu gefräßig.} hxg2 26. Qf4 gxf1=Q+ $19)) 24... Qxh4 {[%emt 0:02:07]} (24... Rxh4 $142 25. Qe7 Rxe7 (25... Qxe7 $2 26. Rc3 $19) 26. Rxc6 Re8 27. Re6 fxe6 (27... Rxe6 {führt zum Matt.} 28. f4 Qh6 29. Rf3 Rh1+ 30. Kf2 Qh4+ 31. Rg3 Rb6 32. Bc2 Rb2 33. e4 Rxc2+ 34. Ke3 Qxg3#) 28. f4 Qh6 29. Kf2 Rb8 30. Kg3 Rh3+ 31. gxh3 Qxh3+ 32. Kf2 Rb2+ 33. Bc2 Rxc2+ 34. Kg1 Qh2#) 25. f3 {[%emt 0:00:02]} Qh2+ {[%emt 0:00:37]} ({Und nicht} 25... Rxe3 26. Qb8+) 26. Kf2 {[%emt 0:00:01] [#] Schwarz muss nun Rh1 beachten.} Bxf3 $1 {[%emt 0:00:02][%mdl 512]} 27. e4 {[%emt 0:01:12]} (27. Kxf3 Rf6+) 27... Qxg2+ {[%emt 0:00:42] Gewichteter Fehlerwert: Weiß=0.91/Schwarz=0.32.  Verlustzug:     	Weiß=1     	---        Fehler:       	Weiß=1     	Schwarz=2     Ungenau:       	Weiß=1     	---        OK:         	Weiß=4     	Schwarz=7     Bester:       	Weiß=1     	Schwarz=1     Stark:        	---       	Schwarz=1} 0-1

[Event "Grand Prix Romania 1st Stage 2024"]
[Site "Bucuresti"]
[Date "2024.03.24"]
[Round "8.14"]
[White "Parligras, Mircea-Emilian"]
[Black "Stoleriu, George"]
[Result "1-0"]
[ECO "E90"]
[WhiteElo "2543"]
[BlackElo "2391"]
[Annotator "TA"]
[PlyCount "59"]
[EventDate "2024.03.20"]
[EventType "swiss"]
[EventCountry "ROU"]
[SourceTitle "playchess.com"]
[Source "ChessBase"]
[SourceQuality "1"]
[TimeControl "900+5"]

{[%evp 14,59,45,53,62,45,62,71,59,56,70,72,62,71,108,96,94,104,134,117,187,198,258,258,248,222,248,236,228,217,227,227,266,261,338,332,347,320,643,643,1471,1412,1345,1304,2922,2690,29989,29990]} 1. d4 {[%emt 0:00:03]} Nf6 {[%emt 0:00:01]} 2. c4 {[%emt 0:00:02]} g6 {[%emt 0:00:02]} 3. Nc3 {[%emt 0:00:02]} Bg7 {[%emt 0:00:02]} 4. e4 {[%emt 0:00:01]} d6 {[%emt 0:00:01]} 5. h3 {[%emt 0:00:02]} O-O {[%emt 0:00:04]} 6. Be3 {[%emt 0:00:02]} c5 {[%emt 0:00:18]} 7. Nf3 {[%emt 0:00:03]} cxd4 {[%emt 0:00:17]} 8. Nxd4 {[%emt 0:00:02]} b6 {[%emt 0:00:02]} 9. Qd2 {[%emt 0:00:27] White is more active.} Bb7 {[%emt 0:00:01]} 10. f3 {[%emt 0:00:02]} Nbd7 {[%emt 0:00:16] White is better.} 11. O-O-O {[%emt 0:00:33]} Rc8 {[%emt 0:01:52]} 12. Bh6 {[%emt 0:00:29]} a6 {[%emt 0:03:34]} 13. h4 {[%emt 0:00:13]} Nh5 {[%emt 0:03:04] White now steadily converts the win.} 14. Rh3 {[%emt 0:04:28]} e5 {[%emt 0:01:54]} 15. Bxg7 {[%emt 0:00:03]} Nxg7 {[%emt 0:01:07]} 16. Nc2 {[%emt 0:00:30]} Rc6 {[%emt 0:00:04]} (16... Ne8 $16 17. h5 Ndf6) 17. Nb4 $18 {[%emt 0:00:15]} Ne8 {[%emt 0:03:32]} (17... Rc7 {was worth a try.} 18. Qxd6 Kh8) 18. Nxc6 {[%emt 0:00:05]} Bxc6 {[%emt 0:00:01]} 19. f4 {[%emt 0:01:49]} exf4 {[%emt 0:00:11]} 20. Qxf4 {[%emt 0:00:03]} Qe7 {[%emt 0:00:04]} 21. g4 {[%emt 0:01:12][%cal Bg2g4,Bg4g5,Bg5f6][%mdl 32]} Ne5 {[%emt 0:00:06]} 22. g5 {[%emt 0:00:25]} Qe6 {[%emt 0:00:05]} 23. Nd5 {[%emt 0:00:49]} b5 {[%emt 0:00:14]} 24. cxb5 {[%emt 0:00:20]} Bxb5 {[%emt 0:00:04]} 25. Rc3 {[%emt 0:00:38] Threatens to win with Bh3.} Ng7 $2 {[%emt 0:00:01] [#]} (25... f6) 26. Bh3 {[%emt 0:00:31]} f5 {[%emt 0:00:10]} 27. gxf6 {[%emt 0:00:11]} Qf7 {[%emt 0:00:05]} 28. Rc7 {[%emt 0:00:56]} Nd7 {[%emt 0:00:06]} 29. Bxd7 {[%emt 0:00:50]} Nh5 {[%emt 0:00:04]} 30. Qxd6 {[%emt 0:00:11] Weighted Error Value: White=0.05 (flawless) /Black=0.80.  Mistake:       	---       	Black=3      Inaccurate:     	---       	Black=2      OK:         	White=9     	Black=2      Best:        	White=2     	---} 1-0

[Event "Grand Prix Romania 1st Stage 2024"]
[Site "Bucuresti"]
[Date "2024.03.24"]
[Round "8.15"]
[White "Filev, Georgi"]
[Black "Castellanos Rodriguez, Renier"]
[Result "1/2-1/2"]
[ECO "B51"]
[WhiteElo "2210"]
[BlackElo "2469"]
[Annotator "TA"]
[PlyCount "91"]
[EventDate "2024.03.20"]
[EventType "swiss"]
[EventCountry "ROU"]
[SourceTitle "playchess.com"]
[Source "ChessBase"]
[SourceQuality "1"]
[TimeControl "900+5"]

{[%evp 23,91,0,0,0,0,10,12,12,43,35,39,37,42,18,22,0,33,35,103,53,64,61,64,24,24,31,152,17,31,30,29,12,9,0,0,0,0,0,0,0,0,0,0,0,0,0,0,0,0,-7,0,-8,-7,-107,-50,-55,-70,-71,-37,-36,-38,-51,0,-32,0,-69,0,-7,0,-37]} 1. e4 {[%emt 0:00:03]} c5 {[%emt 0:00:01]} 2. Nf3 {[%emt 0:00:04]} Nc6 {[%emt 0:00:02]} 3. Bb5 {[%emt 0:00:13]} d6 {[%emt 0:00:01]} 4. O-O {[%emt 0:00:47]} Bd7 {[%emt 0:00:02][%cal Bc8d7,Bd7c6,Bc6e4][%mdl 32]} 5. Re1 {[%emt 0:00:50]} Nf6 {[%emt 0:00:03]} 6. c3 {[%emt 0:00:05]} a6 {[%emt 0:00:02]} 7. Bxc6 {[%emt 0:00:20]} Bxc6 {[%emt 0:00:02]} 8. d4 {[%emt 0:00:07]} Bxe4 {[%emt 0:02:01]} 9. Bg5 {[%emt 0:00:33]} Bd5 {[%emt 0:01:21]} 10. Nbd2 {[%emt 0:00:45]} e6 {[%emt 0:02:02]} 11. c4 {[%emt 0:02:16]} Bxf3 {[%emt 0:00:02]} 12. Qxf3 {[%emt 0:00:15]} cxd4 {[%emt 0:00:04]} 13. Bxf6 {[%emt 0:00:44]} gxf6 {[%emt 0:00:30]} 14. Qxb7 {[%emt 0:00:07] Black is weak on the light squares} Qc8 {[%emt 0:03:06] Wards off Qc6+} 15. Qd5 {[%emt 0:01:24]} Be7 {[%emt 0:00:38]} 16. Qxd4 {[%emt 0:00:03]} Qc5 {[%emt 0:00:15]} 17. Qc3 {[%emt 0:01:11]} Rc8 {[%emt 0:01:09]} 18. Ne4 {[%emt 0:01:24]} Qe5 {[%emt 0:01:19]} 19. Qc2 {[%emt 0:02:36]} O-O {[%emt 0:01:02]} 20. Rad1 {[%emt 0:00:10][%cal Oe4d6,Ba1d1,Bd1d3,Bd3f3][%mdl 32] Nxd6! would now be deadly.} Qf5 {[%emt 0:00:53] [#]} (20... Qa5 $14) 21. Qe2 {[%emt 0:00:40] White is more active.} (21. Qa4 $1 $16) 21... Rfd8 $14 {[%emt 0:00:04]} 22. Rd3 {[%emt 0:00:28]} Kh8 {[%emt 0:00:26]} 23. Rf3 {[%emt 0:00:11]} Qe5 {[%emt 0:00:01]} 24. Re3 {[%emt 0:00:10]} Qd4 {[%emt 0:00:14]} ({Better is} 24... f5 $14 25. Ng3 Qa5) 25. b3 {[%emt 0:00:07]} ({White must play} 25. Qh5 $16 {Intending Rh3 and mate.} f5 26. Qxf7) 25... f5 $11 {[%emt 0:00:19]} 26. Rd1 {[%emt 0:00:54]} Qg7 {[%emt 0:00:05]} 27. Nd2 {[%emt 0:00:24]} d5 {[%emt 0:00:16]} 28. cxd5 Rxd5 {[%emt 0:00:01] Strongly threatening ...Rcd8.} 29. Nc4 {[%emt 0:00:13]} Rxd1+ {[%emt 0:00:07]} 30. Qxd1 {[%emt 0:00:01]} Rd8 {[%emt 0:00:01]} 31. Qb1 {[%emt 0:00:20]} Bc5 {[%emt 0:00:06]} 32. Re1 {[%emt 0:00:08]} Qd4 $40 {[%emt 0:00:06][%mdl 128] Black has some attack.} (32... Rg8 $5 33. g3 $8 f4 $11) 33. Qc2 {[%emt 0:00:07]} Bb4 {[%emt 0:00:10]} 34. Rf1 {[%emt 0:00:06]} Kg7 {[%emt 0:00:18]} 35. Qe2 {[%emt 0:00:03]} Bc5 {[%emt 0:00:08]} 36. h3 {[%emt 0:00:04]} Qe4 {[%emt 0:00:07]} (36... Qf4 {is more complex.} 37. Qc2 Kf6 38. Re1 Rd3) 37. Qb2+ {[%emt 0:00:05]} (37. Re1 {simplifies} Qxe2 38. Rxe2 Rd1+ 39. Kh2) 37... Bd4 {[%emt 0:00:02]} 38. Qa3 {[%emt 0:00:05] [#]} (38. Qc1 $11 {remains equal.} h6 39. Re1) 38... Qe2 {[%emt 0:00:14]} (38... Kf6 $1 $17 {And now ...Rg8 would win.} 39. Nd2 Qe2) 39. Qc1 $1 $15 {[%emt 0:00:09]} h6 {[%emt 0:00:20] Prevents Qg5+} (39... Qxa2 40. Qg5+ Kh8 41. Qxd8+ Kg7 42. Qxd4+ f6 43. Qd7+ Kh6 44. Qxe6) 40. Qf4 {[%emt 0:00:06]} Bf6 {[%emt 0:00:05]} 41. Qg3+ {[%emt 0:00:02]} Kh7 {[%emt 0:00:03]} 42. Qc7 {[%emt 0:00:01]} Kg7 {[%emt 0:00:13]} (42... Qxa2 $2 {too greedy.} 43. Qxf7+ Bg7 44. Qxe6 $18) 43. Qg3+ {[%emt 0:00:01]} Kf8 {[%emt 0:00:02][%cal Od8d3]} 44. Qc7 {[%emt 0:00:04]} ({White should try} 44. Qe3 $11 Qxe3 (44... Qxa2 45. Qxh6+ Ke7 46. Qe3 $11) 45. fxe3) 44... Kg7 {[%emt 0:00:23]} ({Much weaker is} 44... Qxa2 $6 45. Ne5 Be7 46. Nc6 $14) (44... Rd3 $15) 45. Qg3+ $11 {[%emt 0:00:09]} Kh7 {[%emt 0:00:01]} 46. Qc7 {[%emt 0:00:01] Weighted Error Value: White=0.16 (very precise) /Black=0.18 (very precise) .  Mistake:       	White=4     	Black=4      Inaccurate:     	White=1     	Black=4      OK:         	White=11    	Black=11     Best:        	White=2     	Black=1      Strong:       	White=1     	---} 1/2-1/2

[Event "Grand Prix Romania 1st Stage 2024"]
[Site "Bucuresti"]
[Date "2024.03.24"]
[Round "8.16"]
[White "Antonica, Dragos-Andrei"]
[Black "Istratescu, Andrei"]
[Result "1/2-1/2"]
[ECO "A37"]
[WhiteElo "2366"]
[BlackElo "2374"]
[Annotator "RC"]
[PlyCount "58"]
[EventDate "2024.03.20"]
[EventType "swiss"]
[EventCountry "ROU"]
[SourceTitle "playchess.com"]
[Source "ChessBase"]
[SourceQuality "1"]
[TimeControl "900+5"]

1. c4 {[%emt 0:00:02]} c5 {[%emt 0:00:13]} 2. Nc3 {[%emt 0:00:05]} Nc6 {[%emt 0:00:03]} 3. g3 {[%emt 0:00:16]} g6 {[%emt 0:00:02]} 4. Bg2 {[%emt 0:00:01]} Bg7 {[%emt 0:00:01]} 5. Nf3 {[%emt 0:00:09]} e5 {[%emt 0:00:15]} 6. O-O {[%emt 0:00:26]} Nge7 {[%emt 0:00:02]} 7. a3 {[%emt 0:00:24]} O-O {[%emt 0:00:07]} 8. Rb1 {[%emt 0:00:01]} a5 {[%emt 0:00:04]} 9. Ne1 {[%emt 0:00:03]} d6 {[%emt 0:00:03]} 10. Nc2 {[%emt 0:00:06]} Be6 {[%emt 0:00:04]} 11. Ne3 {[%emt 0:00:30]} Rb8 {[%emt 0:01:18]} 12. d3 {[%emt 0:00:18]} Qd7 {[%emt 0:00:13]} 13. Ned5 {[%emt 0:00:20]} Bh3 {[%emt 0:00:37]} 14. Nxe7+ {[%emt 0:00:51]} Nxe7 {[%emt 0:00:02]} 15. b4 {[%emt 0:00:19]} Bxg2 {[%emt 0:00:15]} 16. Kxg2 {[%emt 0:00:01]} axb4 {[%emt 0:00:04]} 17. axb4 {[%emt 0:00:02]} cxb4 {[%emt 0:00:22]} 18. Rxb4 {[%emt 0:00:13]} d5 {[%emt 0:00:00]} 19. Qa4 {[%emt 0:01:46]} Qe6 {[%emt 0:01:25]} 20. cxd5 {[%emt 0:00:34]} Nxd5 {[%emt 0:00:01]} 21. Nxd5 Qxd5+ {[%emt 0:00:01]} 22. Kg1 {[%emt 0:00:09]} b5 {[%emt 0:00:14]} 23. Qb3 {[%emt 0:00:22]} Qxb3 {[%emt 0:00:18]} 24. Rxb3 {[%emt 0:00:01]} Rfc8 {[%emt 0:00:01]} 25. Be3 {[%emt 0:00:35]} Rc2 {[%emt 0:00:22]} 26. Rfb1 {[%emt 0:00:07]} Rxe2 {[%emt 0:00:03]} 27. Kf1 {[%emt 0:00:49]} Rc2 {[%emt 0:00:02]} 28. Rxb5 {[%emt 0:00:01]} Rxb5 {[%emt 0:00:06]} 29. Rxb5 {[%emt 0:00:01]} Rc8 1/2-1/2

[Event "Grand Prix Romania 1st Stage 2024"]
[Site "Bucuresti"]
[Date "2024.03.24"]
[Round "8.17"]
[White "Tilicheev, Viacheslav"]
[Black "Manolache, Marius"]
[Result "1-0"]
[ECO "B47"]
[WhiteElo "2485"]
[BlackElo "2387"]
[Annotator "RC"]
[PlyCount "79"]
[EventDate "2024.03.20"]
[EventType "swiss"]
[EventCountry "ROU"]
[SourceTitle "playchess.com"]
[Source "ChessBase"]
[SourceQuality "1"]
[TimeControl "900+5"]

1. e4 {[%emt 0:00:03]} c5 {[%emt 0:00:02]} 2. Nf3 {[%emt 0:00:02]} e6 {[%emt 0:00:02]} 3. d4 {[%emt 0:00:04]} cxd4 {[%emt 0:00:02]} 4. Nxd4 {[%emt 0:00:03]} Nc6 {[%emt 0:00:02]} 5. Nc3 {[%emt 0:00:05]} Qc7 {[%emt 0:00:03]} 6. Qd3 {[%emt 0:00:12]} a6 {[%emt 0:00:15]} 7. Nxc6 {[%emt 0:00:03]} bxc6 {[%emt 0:00:16]} 8. Qg3 {[%emt 0:00:02]} Qxg3 {[%emt 0:00:21]} 9. hxg3 {[%emt 0:00:03]} Rb8 {[%emt 0:00:26]} 10. g4 {[%emt 0:01:00]} d5 {[%emt 0:02:49]} 11. b3 {[%emt 0:03:15]} Bb4 {[%emt 0:00:58]} 12. Bd2 {[%emt 0:00:08]} Nf6 {[%emt 0:00:13]} 13. g5 {[%emt 0:00:08]} Nd7 {[%emt 0:01:23]} 14. Rh4 {[%emt 0:01:39]} Ba3 {[%emt 0:04:13]} 15. Rd1 {[%emt 0:03:41]} O-O {[%emt 0:00:36]} 16. Bd3 {[%emt 0:00:19]} Nc5 {[%emt 0:00:24]} 17. Ke2 {[%emt 0:00:03]} Nxd3 {[%emt 0:00:02]} 18. cxd3 {[%emt 0:00:03]} g6 {[%emt 0:01:30]} 19. Rdh1 {[%emt 0:00:20]} h5 {[%emt 0:00:02]} 20. g4 {[%emt 0:00:11]} d4 {[%emt 0:01:10]} 21. Nb1 {[%emt 0:00:59]} Bd6 {[%emt 0:00:03]} 22. gxh5 {[%emt 0:00:06]} e5 {[%emt 0:00:06]} 23. hxg6 {[%emt 0:00:53]} fxg6 {[%emt 0:00:01]} 24. Bc1 {[%emt 0:00:01]} Kf7 {[%emt 0:00:13]} 25. Ba3 {[%emt 0:00:28]} Ke6 {[%emt 0:00:15]} 26. Rh7 {[%emt 0:00:39]} Rg8 {[%emt 0:00:26]} 27. Rc1 {[%emt 0:00:46]} Bd7 {[%emt 0:00:15]} 28. Bxd6 {[%emt 0:00:24]} Kxd6 {[%emt 0:00:02]} 29. Nd2 {[%emt 0:00:01]} Bg4+ {[%emt 0:00:06]} 30. f3 {[%emt 0:00:03]} Be6 {[%emt 0:00:01]} 31. Kf2 {[%emt 0:00:34]} Rh8 {[%emt 0:00:07]} 32. Rch1 {[%emt 0:00:02]} Rxh7 {[%emt 0:00:04]} 33. Rxh7 {[%emt 0:00:01]} a5 {[%emt 0:00:32]} 34. Rg7 {[%emt 0:00:19]} Rg8 {[%emt 0:00:27]} 35. Rxg8 {[%emt 0:00:14]} Bxg8 {[%emt 0:00:01]} 36. Nc4+ {[%emt 0:00:02]} Bxc4 {[%emt 0:00:17]} 37. bxc4 {[%emt 0:00:04]} Kc5 {[%emt 0:00:05]} 38. f4 {[%emt 0:00:05]} exf4 {[%emt 0:00:12]} 39. e5 {[%emt 0:00:10]} a4 {[%emt 0:00:08]} 40. Kf3 {[%emt 0:01:10]} 1-0